bitfinex/quotes_ETHUSD_20260209
["timestamp","ask_amount","ask_price","bid_price","bid_amount"]
[1770620721199,0.002,2080.0,2079.7,1.9020776]
[1770620721396,0.002,2080.0,2079.7,0.7]
[1770620721700,0.96879704,2080.0,2079.7,0.7]
[1770620721899,0.96879704,2080.0,2078.8,0.97187079]
[1770620722080,0.96879704,2080.0,2079.2,1.20236295]
[1770620723898,0.96679704,2079.8,2079.0,2.17337199]
[1770620724073,0.96679704,2079.8,2079.2,0.19592026]
[1770620724688,0.96879704,2079.8,2079.2,0.19592026]
[1770620725180,0.96879704,2079.8,2078.8,0.001]
[1770620725379,0.96679704,2079.6,2078.8,0.001]
[1770620725779,0.96679704,2079.4,2078.9,0.19592026]
[1770620725970,0.96679704,2079.4,2078.8,0.001]
[1770620726180,0.96679704,2079.4,2078.8,0.19692026]
[1770620726779,0.96679704,2079.2,2078.5,0.001]
[1770620726977,0.96679704,2079.2,2078.4,0.001]
[1770620727194,0.96679704,2079.2,2078.4,0.19692026]
[1770620727998,0.96679704,2079.0,2078.4,0.19692026]
[1770620728399,0.96679704,2079.0,2078.3,0.001]
[1770620729504,0.96679704,2079.0,2078.1,0.001]
[1770620730974,0.96679704,2078.8,2078.0,0.001]
[1770620731179,0.96679704,2078.6,2077.9,0.001]
[1770620733582,0.96679704,2078.4,2077.8,0.001]
[1770620733810,0.96679704,2078.4,2077.6,0.001]
[1770620735693,0.96679704,2078.2,2077.6,0.001]
[1770620737417,0.96679704,2078.2,2078.1,0.001]
[1770620737612,1.20290622,2078.3,2077.9,0.001]
[1770620737821,0.96679704,2078.2,2077.6,0.001]
[1770620740503,1.20302199,2078.1,2077.6,0.001]
[1770620740822,1.20302199,2078.1,2077.0,4.81561498]
[1770620740823,0.96679704,2077.6,2077.0,0.001]
[1770620741132,0.2511287,2076.4,2076.0,0.97087079]
[1770620741294,0.2511287,2076.4,2076.0,2.17510379]
[1770620741490,0.2511287,2076.4,2076.0,2.17508074]
[1770620741693,0.2511287,2076.4,2076.0,2.17507497]
[1770620741896,0.2511287,2076.4,2076.0,0.97087079]
[1770620742510,0.2511287,2076.4,2076.0,2.17510274]
[1770620742713,0.2511287,2076.4,2076.0,0.97087079]
[1770620743233,0.2511287,2076.4,2075.9,1.20428107]
[1770620743440,1.45514131,2076.4,2075.7,1.20437402]
[1770620743727,1.45514131,2076.4,2075.6,0.97087079]
[1770620744233,0.2511287,2076.4,2075.6,5.78874371]
[1770620744432,1.45517835,2076.4,2075.6,0.97087079]
[1770620744642,2.42197539,2076.4,2075.6,0.97087079]
[1770620744933,2.42197539,2076.4,2075.4,1.20456757]
[1770620744934,0.96679704,2076.3,2075.3,1.20464052]
[1770620745299,0.96679704,2076.3,2075.2,2.17554272]
[1770620745609,0.96679704,2076.3,2075.4,1.20458362]
[1770620745813,1.45517835,2076.4,2075.6,2.11728379]
[1770620746013,1.45517835,2076.4,2075.6,2.11728293]
[1770620746224,1.45517835,2076.4,2075.6,0.91281387]
[1770620746528,1.45517835,2076.4,2075.6,2.11724022]
[1770620746737,1.20404965,2076.4,2075.6,2.11724022]
[1770620747432,1.49467653,2077.3,2075.6,2.11724022]
[1770620747433,1.44364669,2078.1,2075.7,0.91281387]
[1770620747595,0.91912357,2077.0,2075.9,0.91281387]
[1770620748597,1.20371707,2076.9,2076.0,1.20423892]
[1770620748801,2.12284064,2076.9,2075.9,1.20426043]
[1770620749037,0.91912357,2076.8,2075.9,1.20429601]
[1770620749537,1.02152357,2076.7,2075.9,1.20428314]
[1770620750026,0.91912357,2076.7,2075.9,1.20428314]
[1770620750215,1.20371707,2076.9,2076.0,0.91281387]
[1770620750818,1.20370143,2077.0,2076.1,2.11699478]
[1770620751016,1.20370143,2077.0,2076.2,0.91281387]
[1770620752732,1.20370143,2077.0,2076.1,1.20418091]
[1770620753431,0.1024,2077.3,2076.1,0.91281387]
[1770620753736,0.1024,2077.3,2075.8,0.001]
[1770620753737,2.12249829,2077.5,2076.5,0.91281387]
[1770620754802,1.2032883,2077.7,2076.5,0.91281387]
[1770620755005,1.2032168,2077.8,2076.5,0.91281387]
[1770620755418,0.1024,2077.8,2076.7,0.91281387]
[1770620755732,1.02152357,2077.8,2076.7,0.91281387]
[1770620756129,0.1024,2077.8,2076.7,0.91281387]
[1770620757135,0.1024,2077.8,2076.7,0.89434846]
[1770620757338,1.20313778,2077.9,2076.7,0.89434846]
[1770620757502,1.20313778,2077.9,2076.9,0.91281387]
[1770620757929,1.20313778,2077.9,2076.9,0.72528588]
[1770620758316,1.20313778,2077.9,2076.9,0.67528588]
[1770620760108,1.20313778,2077.9,2077.0,2.11647299]
[1770620760803,5.48821889,2078.0,2077.0,2.11647299]
[1770620761038,3.366,2078.0,2077.1,0.91281387]
[1770620761405,3.366,2078.0,2077.3,0.91281387]
[1770620762109,3.366,2078.0,2077.5,0.91281387]
[1770620763418,0.002,2077.7,2077.5,0.91281387]
[1770620764151,2.12174046,2078.8,2077.7,0.91281387]
[1770620764651,2.12374046,2078.8,2077.7,0.91281387]
[1770620765352,0.002,2078.8,2077.7,0.91281387]
[1770620765535,0.002,2078.8,2077.7,0.96329221]
[1770620766252,0.002,2078.8,2078.0,1.20307988]
[1770620766421,0.002,2078.8,2078.1,0.91281387]
[1770620768649,0.002,2078.8,2078.2,1.2029641]
[1770620770043,0.002,2078.8,2078.2,2.11577797]
[1770620770244,0.002,2078.8,2078.3,0.91281387]
[1770620770840,0.002,2078.8,2078.4,1.20284834]
[1770620772538,0.002,2078.8,2078.4,2.11566221]
[1770620773758,0.002,2078.8,2078.3,1.20290469]
[1770620773965,0.002,2078.8,2078.3,1.20290549]
[1770620774254,0.002,2078.8,2078.2,1.20291854]
[1770620774660,0.002,2078.8,2078.2,1.20292238]
[1770620775461,0.002,2079.1,2078.4,0.90885268]
[1770620776751,0.002,2078.6,2078.4,0.90885268]
[1770620776957,0.002,2079.1,2078.3,0.90885268]
[1770620777157,0.002,2078.8,2078.5,0.90885268]
[1770620777551,0.002,2079.1,2078.5,0.90885268]
[1770620779945,0.002,2079.1,2078.6,1.2027326]
[1770620780866,0.97559329,2079.1,2078.5,1.20275074]
[1770620781094,0.002,2079.1,2078.5,1.20275074]
[1770620786351,0.002,2079.1,2078.5,2.15212529]
[1770620786574,0.002,2079.1,2078.6,2.15205036]
[1770620789350,0.002,2079.1,2078.7,0.001]
[1770620789550,0.002,2078.9,2078.6,2.15205036]
[1770620790478,0.002,2078.9,2078.6,1.20267581]
[1770620791279,0.002,2078.9,2078.5,4.81103043]
[1770620791776,0.002,2078.9,2078.6,0.94937455]
[1770620792882,6.352,2079.7,2078.7,0.94937455]
[1770620793093,0.002,2079.7,2078.7,0.94937455]
[1770620793263,0.002,2079.7,2079.3,1.2023277]
[1770620793859,0.002,2079.7,2079.4,0.94937455]
[1770620794554,0.002,2080.0,2079.4,0.94937455]
[1770620795479,0.002,2080.0,2079.6,0.94937455]
[1770620795867,0.002,2080.2,2079.7,0.94937455]
[1770620796280,0.335059,2080.5,2079.6,0.94937455]
[1770620796581,0.335059,2080.5,2079.9,0.94937455]
[1770620797459,0.335059,2080.5,2080.0,1.20192307]
[1770620797661,0.335059,2080.5,2080.0,2.15129762]
[1770620798888,0.14069877,2080.5,2080.2,0.94937455]
[1770620799191,0.002,2080.7,2080.1,0.99985289]
[1770620799486,0.002,2080.7,2080.2,0.7]
[1770620799657,0.002,2080.7,2080.4,2.15106653]
[1770620799856,0.002,2080.7,2080.5,0.94937455]
[1770620800261,0.002,2080.9,2080.5,0.94937455]
[1770620801773,0.002,2080.9,2080.6,2.15095101]
[1770620802594,0.002,2080.9,2080.7,0.94937455]
[1770620803295,0.002,2081.3,2080.8,0.94937455]
[1770620803482,0.002,2081.3,2081.2,0.05047834]
[1770620803867,0.002,2081.3,2081.2,1.25170839]
[1770620805704,0.002,2081.6,2081.2,2.2129475]
[1770620805871,0.002,2081.5,2081.2,2.2129475]
[1770620807477,0.002,2081.6,2081.2,2.2129475]
[1770620807679,0.002,2081.5,2081.2,2.2129475]
[1770620809210,0.002,2081.4,2081.2,1.20123005]
[1770620809382,0.002,2081.5,2081.3,0.96123911]
[1770620809570,0.002,2081.5,2081.4,0.7]
[1770620810371,0.002,2081.6,2081.2,1.20122849]
[1770620810784,0.002,2081.6,2081.1,4.80514516]
[1770620810978,0.002,2081.6,2081.1,5.50314516]
[1770620811713,0.002,2081.6,2081.4,0.05047834]
[1770620811873,0.002,2082.1,2081.7,0.05047834]
[1770620812072,1e-08,2082.2,2082.0,0.05047834]
[1770620812922,1e-08,2082.2,2082.0,1.25122178]
[1770620813216,1e-08,2082.2,2082.0,0.05047834]
[1770620813380,1e-08,2082.2,2082.0,1.25123417]
[1770620813580,1e-08,2082.2,2082.0,1.94923417]
[1770620815389,1e-08,2082.2,2082.0,1.25123417]
[1770620815970,0.00200001,2082.2,2082.0,1.25123417]
[1770620816678,0.00200001,2082.2,2082.1,0.698]
[1770620816984,0.00200001,2082.2,2082.0,1.94923417]
[1770620817502,0.002,2082.2,2082.0,1.94923417]
[1770620817908,0.002,2082.2,2082.1,0.698]
[1770620818477,0.32387619,2083.0,2082.8,0.05047834]
[1770620818783,1.19996475,2083.4,2082.6,4.36871745]
[1770620819000,1.19996475,2083.4,2082.9,0.05047834]
[1770620819204,2.13530705,2083.5,2082.9,0.05047834]
[1770620819412,1.19987109,2083.6,2082.9,0.05047834]
[1770620819583,1.19984641,2083.6,2082.9,0.05047834]
[1770620819901,5.73463266,2083.7,2082.9,1.94872]
[1770620819902,2.13523382,2083.7,2082.9,1.94872]
[1770620820075,0.93540089,2083.9,2083.0,1.65923911]
[1770620820277,18.96067075,2084.7,2083.2,1.01171745]
[1770620820278,1.19944345,2084.3,2083.2,1.01171745]
[1770620820609,0.93540089,2084.2,2083.2,0.05047834]
[1770620820906,0.93540089,2084.2,2083.3,0.698]
[1770620821277,0.93540089,2084.2,2083.5,0.05047834]
[1770620821485,1.19944345,2084.3,2083.5,0.74847834]
[1770620821680,5.73313462,2084.4,2083.6,0.698]
[1770620821875,0.93540089,2084.3,2083.4,0.05047834]
[1770620822091,0.93540089,2084.3,2083.4,0.698]
[1770620822488,0.93540089,2084.3,2083.3,0.05047834]
[1770620822784,0.93540089,2084.3,2082.9,1.25072763]
[1770620823011,0.93540089,2084.3,2082.9,1.25069149]
[1770620823211,0.93540089,2084.3,2082.9,1.2507097]
[1770620823512,0.93540089,2084.3,2083.5,0.05047834]
[1770620823706,1.199501,2084.2,2083.5,1.25038072]
[1770620824018,1.199501,2084.2,2083.5,0.05047834]
[1770620825627,0.93540089,2083.9,2082.8,0.96123911]
[1770620825785,0.93540089,2083.9,2083.0,0.698]
[1770620825987,0.93540089,2083.9,2083.0,1.89819016]
[1770620826314,0.93540089,2083.9,2083.1,0.698]
[1770620826502,0.93540089,2083.9,2082.8,1.20029956]
[1770620826704,0.93540089,2083.9,2083.0,0.05047834]
[1770620826912,0.93540089,2083.9,2083.3,0.05047834]
[1770620827691,4.79846449,2084.1,2083.4,1.89795632]
[1770620827893,0.002,2083.7,2083.4,1.89795632]
[1770620828292,0.002,2083.7,2083.6,0.05047834]
[1770620828586,0.002,2083.7,2083.4,0.698]
[1770620829016,0.002,2083.7,2083.6,0.05047834]
[1770620829395,0.002,2083.9,2083.6,0.05047834]
[1770620829714,1.52367677,2084.5,2083.8,0.05047834]
[1770620830820,0.93540089,2084.4,2083.8,0.696]
[1770620831229,0.93540089,2084.4,2083.5,0.05047834]
[1770620831595,0.93540089,2084.4,2083.4,0.05047834]
[1770620831790,0.93540089,2084.2,2083.0,0.05047834]
[1770620832004,0.93540089,2084.2,2083.2,0.05047834]
[1770620832225,0.93540089,2084.2,2083.3,0.7]
[1770620832732,0.93540089,2084.2,2083.0,0.05047834]
[1770620833332,0.93540089,2084.2,2083.3,0.05047834]
[1770620833824,0.93540089,2084.0,2083.0,0.05047834]
[1770620835120,0.93540089,2084.0,2083.3,0.05047834]
[1770620835320,0.93540089,2084.0,2083.0,0.05047834]
[1770620835537,0.93540089,2084.0,2083.3,0.05047834]
[1770620835695,1.19967368,2083.9,2083.3,0.05047834]
[1770620837599,0.92466498,2083.8,2082.8,1.20028085]
[1770620837818,0.92466498,2083.8,2083.0,0.05047834]
[1770620837819,1.19978883,2083.7,2083.0,0.05047834]
[1770620838119,1.19978883,2083.7,2083.3,0.05047834]
[1770620839925,0.92466498,2083.9,2083.0,0.05047834]
[1770620840218,0.92466498,2083.9,2083.3,0.05047834]
[1770620840433,0.002,2083.7,2083.6,0.05047834]
[1770620841314,0.002,2083.9,2083.6,0.05047834]
[1770620842009,0.002,2083.9,2083.6,2.20761932]
[1770620842391,0.002,2083.9,2083.6,1.00777743]
[1770620844429,0.002,2083.9,2083.6,0.05047834]
[1770620847525,0.002,2083.9,2083.3,4.85047829]
[1770620847526,0.002,2083.8,2083.3,0.05047834]
[1770620848126,0.002,2083.7,2083.3,0.05047834]
[1770620848325,0.002,2083.8,2083.3,1.2504908]
[1770620848832,0.002,2083.7,2083.3,0.05047834]
[1770620849030,0.002,2083.8,2083.3,0.05047834]
[1770620849434,0.002,2083.7,2083.3,0.05047834]
[1770620849636,0.002,2083.8,2083.3,0.05047834]
[1770620849928,0.92666498,2083.8,2083.2,0.001]
[1770620850132,0.002,2083.7,2083.2,0.001]
[1770620850430,0.92466498,2083.8,2083.2,0.001]
[1770620850816,2.12445381,2083.7,2083.2,0.001]
[1770620851630,0.92466498,2083.6,2083.2,0.001]
[1770620852240,0.92466498,2083.6,2082.6,0.05047834]
[1770620852425,0.92466498,2083.6,2082.4,1.20048642]
[1770620852629,0.92466498,2083.6,2082.7,0.05047834]
[1770620852940,2.12651139,2083.6,2083.5,0.001]
[1770620853120,0.92466498,2083.5,2082.7,0.05047834]
[1770620853317,1.20184641,2083.6,2083.3,0.001]
[1770620853514,2.12651139,2083.6,2083.3,0.001]
[1770620854234,8.15415534,2083.8,2083.4,0.05047834]
[1770620854235,1.20173591,2083.8,2083.4,0.05047834]
[1770620855037,0.002,2083.8,2083.4,0.05047834]
[1770620857243,0.92666498,2083.8,2083.3,0.001]
[1770620857427,0.92666498,2083.8,2082.7,1.00777743]
[1770620857428,0.92666498,2083.8,2082.7,1.25082642]
[1770620857634,0.92666498,2083.8,2082.7,0.05047834]
[1770620858148,0.92666498,2083.8,2082.6,0.05047834]
[1770620858452,0.92666498,2083.8,2082.5,1.00777743]
[1770620858617,0.92666498,2083.8,2082.8,0.05047834]
[1770620859327,0.92466498,2083.6,2082.8,0.05047834]
[1770620861153,0.92466498,2083.6,2082.5,1.25094711]
[1770620861344,0.92466498,2083.6,2082.8,0.05047834]
[1770620861520,2.12456898,2083.5,2082.5,2.2082462]
[1770620862040,2.12456898,2083.5,2082.8,0.05047834]
[1770620864044,2.12456898,2083.5,2082.5,2.2082462]
[1770620864350,0.002,2083.9,2083.4,1.00777743]
[1770620864548,1.20168286,2083.9,2083.4,1.00777743]
[1770620864848,0.002,2083.9,2083.4,1.00777743]
[1770620865227,1.20168199,2083.9,2083.4,1.00777743]
[1770620865423,1.20168199,2083.9,2083.1,1.04999282]
[1770620865647,1.20168199,2083.9,2083.4,0.05047834]
[1770620865832,1.20168199,2083.9,2083.1,1.04999282]
[1770620866027,0.002,2083.6,2083.4,0.05047834]
[1770620866733,0.002,2083.6,2083.1,2.2500972]
[1770620866933,0.002,2083.6,2083.2,1.20006765]
[1770620867128,0.002,2083.6,2083.4,0.05047834]
[1770620867474,0.002,2083.6,2083.2,1.20006765]
[1770620867626,0.002,2083.6,2083.0,0.001]
[1770620867825,0.002,2083.6,2083.1,0.05047834]
[1770620868150,0.002,2083.6,2083.0,0.001]
[1770620868673,0.002,2083.6,2083.1,0.05047834]
[1770620868850,0.002,2083.6,2083.1,1.04999282]
[1770620869946,0.002,2083.6,2083.1,0.05047834]
[1770620870152,0.002,2083.6,2083.0,0.001]
[1770620871438,0.002,2083.6,2083.1,0.05047834]
[1770620873555,0.002,2083.6,2083.0,0.001]
[1770620873750,0.002,2083.6,2083.1,0.05047834]
[1770620874062,0.002,2083.6,2083.0,0.001]
[1770620874063,0.9946098,2083.6,2083.0,0.001]
[1770620876376,1.199904,2083.5,2083.0,0.001]
[1770620876663,2.1925138,2083.5,2083.0,0.001]
[1770620876868,2.1925138,2083.5,2082.8,0.001]
[1770620876869,0.9926098,2083.4,2082.8,0.001]
[1770620878149,0.9926098,2083.4,2083.2,0.001]
[1770620878334,1.2000192,2083.3,2083.0,0.001]
[1770620880583,1.2000192,2083.3,2082.4,4.85358412]
[1770620880584,0.9926098,2083.2,2082.4,0.001]
[1770620882546,0.9926098,2083.0,2082.4,0.001]
[1770620883344,1.1999616,2083.4,2082.5,1.04999282]
[1770620883586,2.1925714,2083.4,2082.5,1.04999282]
[1770620883768,0.9926098,2083.3,2082.4,0.001]
[1770620883946,0.9926098,2083.3,2082.6,0.05047834]
[1770620884442,1.2000768,2083.2,2082.4,2.20100205]
[1770620884643,1.2000768,2083.2,2082.6,0.05047834]
[1770620884848,1.2000768,2083.2,2082.4,2.20104334]
[1770620885144,1.2000768,2083.2,2082.6,0.05047834]
[1770620885646,2.1926866,2083.2,2082.4,0.001]
[1770620886074,0.9926098,2083.1,2082.4,0.001]
[1770620886576,1.20019203,2083.0,2082.4,0.001]
[1770620886945,1.20019203,2083.0,2082.4,0.05147834]
[1770620887950,2.19280183,2083.0,2082.4,0.001]
[1770620889280,0.9926098,2082.9,2082.4,0.001]
[1770620890450,0.9926098,2082.9,2082.6,0.001]
[1770620890760,0.9926098,2082.9,2082.4,0.001]
[1770620891383,1.20030727,2082.8,2082.4,0.001]
[1770620894879,4.80122911,2082.9,2082.4,0.001]
[1770620894880,1.20027982,2082.9,2082.5,0.05047834]
[1770620895376,4.55422494,2083.0,2082.5,0.05047834]
[1770620895582,1.199904,2083.5,2082.6,0.92998716]
[1770620895874,2.1292445,2083.5,2082.8,0.05047834]
[1770620897092,1.199904,2083.5,2082.8,0.05047834]
[1770620897253,0.9293405,2083.4,2082.5,0.05047834]
[1770620897457,0.9293405,2083.4,2082.5,1.01642878]
[1770620898767,2.17644562,2083.3,2082.5,1.01642878]
[1770620898969,0.97642642,2083.2,2082.5,0.05047834]
[1770620899170,0.97642642,2083.2,2082.4,0.001]
[1770620899486,0.97642642,2083.1,2082.4,0.001]
[1770620900678,0.97642642,2083.1,2082.2,0.05047834]
[1770620900893,0.97642642,2082.9,2082.1,0.96695044]
[1770620901220,0.97642642,2082.9,2082.1,0.001]
[1770620902878,1.20030727,2082.8,2082.3,0.001]
[1770620903690,2.17673369,2082.8,2082.3,0.001]
[1770620904057,0.97642642,2082.8,2082.3,0.001]
[1770620904256,2.17673369,2082.8,2082.1,0.001]
[1770620905801,1.20030727,2082.8,2082.1,0.001]
[1770620906008,0.97642642,2082.7,2082.1,0.001]
[1770620906525,1.20030727,2082.8,2082.1,0.96695044]
[1770620906813,1.20030727,2082.8,2082.2,1.01642878]
[1770620906987,1.20030727,2082.8,2082.2,0.05047834]
[1770620907192,5.77965553,2082.9,2082.2,0.05047834]
[1770620908979,4.80322911,2082.9,2082.3,0.05047834]
[1770620909185,0.002,2082.9,2082.3,1.01642878]
[1770620909879,0.002,2082.9,2082.3,0.96595044]
[1770620910085,0.002,2082.9,2082.2,0.05047834]
[1770620910290,0.97642642,2082.8,2082.1,0.001]
[1770620910702,0.97642642,2082.8,2082.0,0.001]
[1770620910991,0.97642642,2082.7,2081.3,1.01742878]
[1770620911190,0.97642642,2082.5,2081.3,0.96695044]
[1770620911394,0.97642642,2082.3,2081.3,0.96695044]
[1770620911607,0.97642642,2082.3,2081.3,1.01742878]
[1770620911809,0.97642642,2082.3,2081.3,0.96695044]
[1770620912311,0.97642642,2082.3,2081.3,0.001]
[1770620913204,0.97642642,2082.1,2081.0,0.001]
[1770620914816,0.97642642,2081.9,2081.0,0.001]
[1770620915235,1.20088385,2081.8,2081.0,0.96695044]
[1770620915416,1.20088385,2081.8,2081.1,1.01642878]
[1770620916231,1.20071082,2082.1,2081.4,1.01642878]
[1770620917117,1.20071082,2082.1,2081.7,0.001]
[1770620917298,1.20059549,2082.3,2081.7,0.001]
[1770620921308,2.17702191,2082.3,2081.7,0.001]
[1770620921720,1.20059549,2082.3,2081.7,0.001]
[1770620922330,2.17702191,2082.3,2081.7,0.001]
[1770620923525,4.55556378,2082.4,2081.7,0.96695044]
[1770620924725,0.97642642,2082.3,2081.5,0.001]
[1770620925223,4.55556378,2082.4,2081.0,2.1737899]
[1770620925224,1.03468515,2082.0,2081.0,2.1737899]
[1770620925409,1.20082616,2081.9,2081.1,0.97147961]
[1770620927022,1.20082616,2081.9,2081.2,1.02195795]
[1770620927423,4.80307801,2082.1,2081.5,1.02195795]
[1770620927998,5.73536316,2082.1,2081.2,0.05047834]
[1770620928194,0.93228515,2082.0,2081.1,0.97147961]
[1770620928399,0.93228515,2082.0,2081.1,2.17276507]
[1770620928619,0.93228515,2082.0,2081.1,0.97147961]
[1770620929210,0.93228515,2082.0,2081.5,0.001]
[1770620929529,1.20282616,2081.9,2081.1,0.97147961]
[1770620929709,2.13511131,2081.9,2081.3,0.001]
[1770620930721,1.20282616,2081.9,2081.3,0.001]
[1770620931927,0.002,2081.9,2081.3,0.001]
[1770620935334,0.002,2081.9,2081.2,0.97147961]
[1770620936933,0.93428515,2081.9,2081.2,0.97147961]
[1770620938751,0.002,2081.9,2081.2,1.02195795]
[1770620939632,0.93428515,2081.9,2081.0,0.97247961]
[1770620939838,0.002,2081.9,2081.5,1.02195795]
[1770620940007,0.002,2081.9,2081.5,0.97147961]
[1770620940709,0.002,2081.9,2081.6,0.05047834]
[1770620941040,0.002,2081.9,2081.6,1.02195795]
[1770620941242,0.002,2082.1,2081.8,0.05047834]
[1770620941414,0.002,2082.1,2081.9,0.97147961]
[1770620942045,0.002,2082.1,2081.7,1.02195795]
[1770620943730,0.002,2081.9,2081.7,1.02195795]
[1770620946046,0.002,2081.9,2081.7,0.97147961]
[1770620946551,0.002,2081.9,2081.5,0.97147961]
[1770620947748,0.002,2081.9,2081.6,0.05047834]
[1770620948046,0.002,2081.9,2081.6,1.02195795]
[1770620948547,0.002,2081.9,2081.6,2.22295647]
[1770620948928,0.002,2081.9,2081.6,1.02195795]
[1770620950153,0.002,2081.9,2081.7,0.97147961]
[1770620950733,0.002,2081.9,2081.8,0.97147961]
[1770620951433,0.002,2081.9,2081.7,2.17241684]
[1770620952052,0.002,2081.9,2081.7,0.97147961]
[1770620952252,0.002,2081.9,2081.7,2.1724194]
[1770620953658,0.002,2081.9,2081.8,0.97147961]
[1770620955952,0.002,2082.1,2081.8,2.17236346]
[1770620956151,0.002,2082.1,2081.9,1.02587772]
[1770620956447,0.002,2082.1,2081.9,1.02687772]
[1770620958646,0.002,2082.1,2081.9,2.22769396]
[1770620959355,0.002,2082.1,2081.9,1.25229458]
[1770620959561,0.002,2082.1,2081.9,0.001]
[1770620961367,0.002,2082.1,2081.9,1.25229918]
[1770620961666,0.002,2082.1,2081.9,2.17619057]
[1770620963941,0.002,2082.1,2081.9,0.97536973]
[1770620964143,0.002,2082.1,2081.9,2.17618916]
[1770620964565,0.002,2082.1,2081.7,4.80375521]
[1770620964566,0.98668857,2082.1,2081.6,0.001]
[1770620965448,0.98668857,2082.1,2081.4,0.001]
[1770620965966,0.98468857,2081.9,2081.4,0.001]
[1770620966544,1.20076849,2082.0,2081.4,0.001]
[1770620966950,1.20076849,2082.0,2081.5,0.05047834]
[1770620967167,2.18744546,2082.1,2081.5,0.05047834]
[1770620967349,0.002,2082.1,2081.8,0.05047834]
[1770620967770,0.002,2082.1,2081.5,0.97436973]
[1770620968078,0.002,2082.1,2081.6,1.20099923]
[1770620968575,0.002,2082.1,2081.8,0.05047834]
[1770620969770,0.002,2082.1,2081.8,0.05147834]
[1770620969969,0.002,2081.9,2081.8,0.05147834]
[1770620970357,0.002,2081.9,2081.8,0.001]
[1770620971350,0.002,2081.9,2081.6,1.20099258]
[1770620971550,0.002,2081.9,2081.6,1.20099534]
[1770620972982,0.002,2081.9,2081.6,2.12488673]
[1770620975369,0.002,2081.9,2081.8,0.05047834]
[1770620975570,0.002,2081.9,2081.6,1.20099534]
[1770620975959,0.002,2081.9,2081.5,1.25250161]
[1770620976359,0.002,2081.9,2081.6,1.20098901]
[1770620977679,0.002,2081.9,2081.5,1.25248888]
[1770620978175,0.002,2081.9,2081.5,2.17638027]
[1770620978581,0.002,2081.9,2081.8,0.05047834]
[1770620978953,0.002,2082.1,2081.8,0.05047834]
[1770620981081,0.002,2082.1,2081.5,2.17638027]
[1770620981379,0.002,2082.1,2081.6,0.92389139]
[1770620981775,0.002,2082.1,2081.8,0.05047834]
[1770620983483,0.002,2081.9,2081.7,0.001]
[1770620983889,0.002,2081.9,2081.7,1.20193945]
[1770620984384,0.002,2081.9,2081.8,0.05047834]
[1770620984587,0.002,2081.9,2081.7,0.001]
[1770620985564,0.002,2081.9,2081.6,2.12835308]
[1770620986086,0.002,2081.9,2081.8,0.05047834]
[1770620991493,0.002,2081.9,2081.6,2.12835308]
[1770620991694,0.002,2081.9,2081.5,0.001]
[1770620991890,0.002,2081.9,2081.5,0.05147834]
[1770620993266,0.002,2081.9,2081.5,1.25253235]
[1770620994400,0.002,2081.9,2081.5,0.05147834]
[1770620995314,0.002,2081.7,2081.5,0.05147834]
[1770620995610,0.002,2081.7,2081.6,0.001]
[1770620995783,0.002,2081.7,2081.5,0.05147834]
[1770620996891,0.002,2081.7,2081.5,1.25251659]
[1770620999007,0.002,2081.7,2081.5,0.05147834]
[1770620999311,0.002,2081.7,2081.5,1.25253226]
[1770621000009,0.002,2081.7,2081.6,0.9273902]
[1770621000390,0.002,2082.8,2082.1,0.97786854]
[1770621000594,0.002,2082.9,2082.5,9.24508811]
[1770621000794,0.002,2083.0,2082.8,0.05047834]
[1770621000998,0.002,2083.0,2082.8,1.2507792]
[1770621001396,0.002,2083.0,2082.8,0.05047834]
[1770621001593,0.002,2083.0,2082.8,1.25077625]
[1770621001812,0.96937185,2083.6,2082.9,8.31769791]
[1770621002112,0.96937185,2083.6,2083.2,0.05047834]
[1770621002305,2.16910311,2083.8,2083.0,0.9273902]
[1770621002501,2.16910311,2083.8,2083.2,0.05047834]
[1770621003615,2.16910311,2083.8,2083.2,1.25055014]
[1770621004297,2.16910311,2083.8,2083.0,5.72814422]
[1770621004298,2.16910311,2083.8,2083.0,2.12753838]
[1770621004617,0.96937185,2083.7,2083.1,1.25061171]
[1770621004991,0.96937185,2084.2,2083.2,1.20006669]
[1770621005192,0.5878481,2084.1,2083.4,0.05047834]
[1770621005584,0.5878481,2084.1,2083.2,1.20006669]
[1770621005787,0.5878481,2084.1,2083.4,0.05047834]
[1770621006517,1.199501,2084.2,2083.4,0.97786854]
[1770621006727,1.52368303,2084.5,2084.0,0.05047834]
[1770621008712,2.49305488,2084.5,2083.8,2.12708054]
[1770621008897,0.96937185,2084.4,2083.6,1.19979906]
[1770621009098,0.96937185,2084.4,2083.7,1.25026049]
[1770621009287,0.96937185,2084.3,2083.7,1.25026049]
[1770621010320,2.49307426,2084.5,2083.7,1.25026049]
[1770621010531,0.96937185,2084.4,2083.7,0.05047834]
[1770621012318,1.19944345,2084.3,2083.7,1.2502492]
[1770621012515,2.1688153,2084.3,2083.7,0.05047834]
[1770621013134,2.1688153,2084.3,2083.7,1.25026502]
[1770621013423,0.96937185,2084.2,2083.2,1.20003134]
[1770621013620,0.96937185,2084.2,2083.3,1.20001075]
[1770621014008,0.96937185,2084.2,2083.4,1.25043699]
[1770621014313,1.19944345,2084.3,2083.7,0.05047834]
[1770621015130,1.19944345,2084.3,2083.7,2.21714701]
[1770621015337,1.19942727,2084.4,2083.7,2.21714701]
[1770621015831,1.52370844,2084.5,2084.0,0.05047834]
[1770621016235,1.52370844,2084.5,2083.7,2.21714701]
[1770621016401,0.32433476,2084.5,2084.0,1.25008595]
[1770621016725,0.32433476,2084.5,2084.2,0.05047834]
[1770621018127,0.32433476,2084.5,2084.2,1.01143458]
[1770621018621,0.32433476,2084.5,2084.0,1.19961499]
[1770621018846,0.32433476,2084.5,2083.9,1.19962123]
[1770621019026,1.52366924,2084.5,2083.9,1.19962123]
[1770621019527,0.32433476,2084.5,2084.0,0.05047834]
[1770621020243,0.32433476,2084.5,2083.4,1.01143458]
[1770621020244,0.9658927,2084.4,2083.4,1.01143458]
[1770621020530,0.9658927,2084.4,2083.6,0.001]
[1770621020531,1.19944345,2084.3,2083.6,0.001]
[1770621020737,1.20144345,2084.3,2083.6,0.001]
[1770621020908,1.20144345,2084.3,2083.6,0.501]